bitfinex/quotes_SOLUSD_20250819
["timestamp","ask_amount","ask_price","bid_price","bid_amount"]
[1755596088845,26.0,182.39,182.38,0.03]
[1755596089050,77.33309595,182.39,182.38,0.03]
[1755596089229,83.37585268,182.39,182.38,0.03]
[1755596089557,102.17676754,182.39,182.38,0.03]
[1755596089912,104.37595854,182.39,182.38,0.03]
[1755596090943,100.27167197,182.39,182.38,0.03]
[1755596091164,104.37513725,182.39,182.38,0.03]
[1755596092135,15.10621557,182.38,182.35,0.03]
[1755596092349,66.39849023,182.37,182.35,0.03]
[1755596092553,70.80318952,182.37,182.35,0.03]
[1755596092934,26.0,182.33,182.29,0.2]
[1755596093155,26.0,182.3,182.29,0.2]
[1755596093656,26.0,182.3,182.29,0.9]
[1755596093961,67.26,182.33,182.29,0.9]
[1755596094259,31.90880938,182.33,182.29,0.9]
[1755596094431,31.90880938,182.33,182.3,0.7]
[1755596094631,5.90880938,182.31,182.29,0.2]
[1755596094855,5.90880938,182.31,182.3,0.7]
[1755596095245,31.90880938,182.32,182.3,0.7]
[1755596095436,5.90880938,182.31,182.3,0.7]
[1755596095629,5.90880938,182.31,182.29,0.2]
[1755596095834,31.90880938,182.33,182.29,0.2]
[1755596096164,26.0,182.33,182.29,0.2]
[1755596096359,26.0,182.33,182.3,0.7]
[1755596096547,31.90880938,182.33,182.31,0.7]
[1755596096745,5.90880938,182.32,182.31,0.7]
[1755596097652,26.0,182.33,182.31,0.7]
[1755596097837,5.90880938,182.32,182.31,0.7]
[1755596098036,5.90880938,182.32,182.29,0.2]
[1755596098360,5.90880938,182.3,182.29,0.9]
[1755596098546,26.0,182.33,182.3,0.7]
[1755596098754,5.90880938,182.31,182.29,0.2]
[1755596098936,5.90880938,182.32,182.29,0.2]
[1755596099260,5.90880938,182.32,182.3,0.7]
[1755596099449,5.90880938,182.32,182.31,0.7]
[1755596099656,26.0,182.33,182.31,0.7]
[1755596100053,26.0,182.33,182.29,6.10880938]
[1755596100352,31.90880938,182.33,182.32,0.7]
[1755596100558,26.0,182.33,182.3,0.7]
[1755596100746,5.90880938,182.31,182.29,0.2]
[1755596101068,26.0,182.33,182.29,0.9]
[1755596101361,132.0,182.32,182.29,0.2]
[1755596101666,132.0,182.32,182.3,0.7]
[1755596102056,132.0,182.32,182.31,0.7]
[1755596102967,137.90880938,182.32,182.29,0.9]
[1755596103147,5.90880938,182.31,182.29,0.9]
[1755596103954,132.0,182.32,182.29,0.9]
[1755596104255,132.0,182.32,182.3,0.7]
[1755596104565,5.90880938,182.31,182.29,0.2]
[1755596105362,5.90880938,182.3,182.29,0.2]
[1755596105583,31.90880938,182.3,182.29,0.2]
[1755596105937,32.61880938,182.3,182.29,0.2]
[1755596106259,73.63880938,182.3,182.29,0.2]
[1755596108257,79.1242729,182.3,182.29,0.2]
[1755596108568,98.31716188,182.3,182.29,0.2]
[1755596108745,83.21094631,182.3,182.29,0.2]
[1755596109142,83.20998076,182.3,182.29,0.2]
[1755596109366,98.31619633,182.3,182.29,0.2]
[1755596109752,83.20998076,182.3,182.29,0.2]
[1755596110056,79.1242729,182.3,182.29,0.2]
[1755596110464,66.96,182.3,182.29,0.2]
[1755596110667,72.86880938,182.3,182.29,0.2]
[1755596111574,73.57880938,182.3,182.29,0.2]
[1755596111763,79.0642729,182.3,182.29,0.2]
[1755596112375,94.17048847,182.3,182.29,0.2]
[1755596112770,98.25325127,182.3,182.29,0.2]
[1755596113977,72.86880938,182.3,182.29,0.2]
[1755596114882,72.78880938,182.3,182.29,0.2]
[1755596115183,31.90880938,182.3,182.29,0.2]
[1755596115369,72.78880938,182.3,182.29,0.2]
[1755596116484,66.88,182.3,182.29,0.2]
[1755596116659,5.90880938,182.3,182.29,0.92]
[1755596116861,40.88,182.31,182.29,0.92]
[1755596117178,5.90880938,182.3,182.29,0.92]
[1755596117753,6.61880938,182.3,182.29,0.2]
[1755596118181,5.90880938,182.3,182.29,0.2]
[1755596118791,40.88,182.31,182.29,0.2]
[1755596118975,5.90880938,182.3,182.29,0.2]
[1755596119181,6.61880938,182.3,182.29,0.2]
[1755596119869,5.90880938,182.3,182.29,0.2]
[1755596120497,46.78880938,182.3,182.29,0.2]
[1755596120870,52.2742729,182.3,182.29,0.2]
[1755596121073,52.9842729,182.3,182.29,0.2]
[1755596121374,52.2742729,182.3,182.29,0.2]
[1755596121585,52.9842729,182.3,182.29,0.2]
[1755596122188,47.49880938,182.3,182.29,0.2]
[1755596122368,46.78880938,182.3,182.29,0.2]
[1755596122887,5.90880938,182.3,182.29,0.2]
[1755596123089,52.9842729,182.3,182.29,0.2]
[1755596123483,52.2742729,182.3,182.29,0.2]
[1755596123772,46.78880938,182.3,182.29,0.2]
[1755596123971,40.88,182.3,182.29,0.2]
[1755596124178,46.78880938,182.3,182.29,0.2]
[1755596124797,5.90880938,182.3,182.29,0.2]
[1755596124981,46.78880938,182.3,182.29,0.2]
[1755596125300,50.87658426,182.3,182.29,0.2]
[1755596125501,46.78880938,182.3,182.29,0.92]
[1755596125794,26.0,182.3,182.29,0.92]
[1755596125996,132.0,182.32,182.29,0.92]
[1755596126172,5.90880938,182.3,182.29,0.92]
[1755596126372,5.90880938,182.3,182.29,0.2]
[1755596126796,26.0,182.34,182.29,0.2]
[1755596126975,22.84921394,182.37,182.29,0.92]
[1755596126976,5.90880938,182.32,182.29,0.92]
[1755596127183,5.90880938,182.33,182.3,0.72]
[1755596127382,0.06,182.35,182.3,0.72]
[1755596127597,5.90880938,182.34,182.3,0.72]
[1755596128784,5.90880938,182.34,182.3,6.20540787]
[1755596128993,5.90880938,182.34,182.31,0.72]
[1755596129388,0.06,182.35,182.31,0.72]
[1755596129577,5.96880938,182.35,182.31,0.72]
[1755596130400,5.90880938,182.34,182.31,0.72]
[1755596130702,5.96880938,182.35,182.31,0.72]
[1755596131370,0.06,182.35,182.31,6.20514508]
[1755596131576,10.06677492,182.35,182.32,0.72]
[1755596131792,5.96880938,182.35,182.32,0.72]
[1755596131989,0.06,182.35,182.32,6.62880938]
[1755596132269,0.06,182.35,182.33,0.72]
[1755596133001,0.06,182.35,182.31,5.48514508]
[1755596133204,0.06,182.35,182.34,0.72]
[1755596133374,0.06,182.35,182.31,5.48514508]
[1755596133375,0.06,182.35,182.32,0.72]
[1755596133581,5.96880938,182.35,182.33,0.72]
[1755596133799,0.06,182.35,182.34,0.72]
[1755596134375,0.06,182.35,182.31,5.48514508]
[1755596134376,5.96880938,182.35,182.31,5.48514508]
[1755596134605,0.06,182.35,182.32,0.72]
[1755596134790,0.06,182.35,182.33,0.72]
[1755596135387,0.06,182.35,182.3,11.3941886]
[1755596135596,0.06,182.35,182.34,0.72]
[1755596136493,0.06,182.35,182.32,0.72]
[1755596136692,5.90880938,182.33,182.3,0.72]
[1755596137085,5.90880938,182.31,182.29,0.2]
[1755596137595,0.71,182.33,182.29,0.2]
[1755596137909,5.90880938,182.3,182.29,0.2]
[1755596138078,26.06,182.35,182.29,0.91]
[1755596138278,5.90880938,182.31,182.29,0.2]
[1755596138717,5.90880938,182.31,182.29,0.91]
[1755596139211,5.90880938,182.31,182.3,0.71]
[1755596139405,5.90880938,182.31,182.29,0.2]
[1755596140081,132.68,182.34,182.29,0.91]
[1755596140386,5.90880938,182.31,182.3,0.71]
[1755596140587,5.90880938,182.31,182.29,0.2]
[1755596140793,5.90880938,182.3,182.29,0.2]
[1755596141010,0.68,182.31,182.29,0.2]
[1755596141197,44.95830789,182.33,182.29,0.2]
[1755596141396,5.90880938,182.3,182.29,0.91]
[1755596141584,5.90880938,182.3,182.29,0.2]
[1755596143085,6.58880938,182.3,182.29,0.2]
[1755596143285,132.0,182.34,182.29,0.2]
[1755596143512,4.09833087,182.33,182.29,0.91]
[1755596143719,5.90880938,182.32,182.3,0.03]
[1755596144518,132.0,182.34,182.3,0.03]
[1755596144725,5.90880938,182.32,182.3,0.03]
[1755596144923,132.0,182.34,182.3,0.03]
[1755596144924,5.90880938,182.31,182.3,0.03]
[1755596145130,6.58880938,182.31,182.3,0.03]
[1755596145985,5.90880938,182.31,182.3,0.03]
[1755596146593,6.58880938,182.31,182.3,0.03]
[1755596146791,5.90880938,182.31,182.3,0.03]
[1755596147515,6.58880938,182.31,182.3,0.03]
[1755596148816,51.52792293,182.31,182.3,0.03]
[1755596149018,57.01308556,182.31,182.3,0.03]
[1755596149495,51.52792293,182.31,182.3,0.03]
[1755596150599,10.00792293,182.31,182.3,0.03]
[1755596150793,50.84792293,182.31,182.3,0.03]
[1755596151122,44.93911355,182.31,182.3,0.03]
[1755596151328,46.74880938,182.31,182.3,0.03]
[1755596151810,5.90880938,182.31,182.3,0.03]
[1755596152791,10.68793733,182.31,182.3,0.03]
[1755596153109,6.58880938,182.31,182.3,0.03]
[1755596153309,51.52781954,182.31,182.3,0.03]
[1755596154117,47.42880938,182.31,182.3,0.03]
[1755596154325,51.52851013,182.31,182.3,0.03]
[1755596154509,50.84851013,182.31,182.3,0.03]
[1755596154704,46.74880938,182.31,182.3,0.03]
[1755596155912,50.84869461,182.31,182.3,0.03]
[1755596156099,51.52869461,182.31,182.3,0.03]
[1755596157204,50.84869461,182.31,182.3,0.03]
[1755596160415,5.90880938,182.31,182.3,0.03]
[1755596162434,5.90880938,182.31,182.3,0.74]
[1755596162608,132.0,182.34,182.3,0.74]
[1755596162811,5.90880938,182.32,182.31,0.71]
[1755596163023,10.01026586,182.32,182.3,0.03]
[1755596163219,5.90880938,182.31,182.3,0.03]
[1755596164234,5.90880938,182.31,182.3,0.74]
[1755596165210,5.90880938,182.32,182.3,0.74]
[1755596165545,5.90880938,182.31,182.3,0.74]
[1755596169247,10.70380847,182.31,182.3,0.03]
[1755596171732,10.70478296,182.31,182.3,0.03]
[1755596173556,42.18994559,182.31,182.3,0.03]
[1755596173916,45.88549383,182.31,182.3,0.03]
[1755596174535,34.9917094,182.31,182.29,0.2]
[1755596174742,81.2003312,182.3,182.29,0.2]
[1755596176546,80.5103312,182.3,182.29,0.2]
[1755596177049,81.2003312,182.3,182.29,0.2]
[1755596177244,33.80152182,182.3,182.29,0.2]
[1755596177447,76.79478296,182.3,182.29,0.2]
[1755596177653,77.48478296,182.3,182.29,0.2]
[1755596177951,76.79478296,182.3,182.29,0.2]
[1755596178648,77.48478296,182.3,182.29,0.2]
[1755596179151,76.79478296,182.3,182.29,0.92]
[1755596179445,76.79478296,182.3,182.29,0.2]
[1755596180760,76.79698087,182.3,182.29,0.2]
[1755596181547,77.48698087,182.3,182.29,0.2]
[1755596182450,81.18601059,182.3,182.29,0.2]
[1755596183050,86.67147411,182.3,182.29,0.2]
[1755596183246,60.67147411,182.3,182.29,0.2]
[1755596184256,60.67384081,182.3,182.29,0.2]
[1755596185649,80.49837729,182.3,182.29,0.2]
[1755596187150,80.49837729,182.3,182.29,0.92]
[1755596187355,81.07837729,182.3,182.29,0.2]
[1755596187667,80.49837729,182.3,182.29,0.2]
[1755596188057,54.49837729,182.3,182.29,0.92]
[1755596188466,50.79934757,182.3,182.29,0.92]
[1755596188783,10.01934757,182.3,182.29,0.92]
[1755596189854,10.01833651,182.3,182.29,0.92]
[1755596190473,4.10952713,182.3,182.29,0.92]
[1755596190673,10.01856942,182.3,182.29,0.92]
[1755596193296,10.07856942,182.3,182.29,0.2]
[1755596194393,10.76856942,182.3,182.29,0.2]
[1755596194795,10.07856942,182.3,182.29,0.2]
[1755596195884,10.76856942,182.3,182.29,0.2]
[1755596196285,36.76856942,182.3,182.29,0.2]
[1755596196608,36.07856942,182.3,182.29,0.2]
[1755596196904,76.81856942,182.3,182.29,0.2]
[1755596197072,77.50856942,182.3,182.29,0.2]
[1755596197278,70.90976004,182.3,182.29,0.2]
[1755596197593,76.81856942,182.3,182.29,0.92]
[1755596198110,30.16976004,182.3,182.29,0.2]
[1755596198282,36.07856942,182.3,182.29,0.2]
[1755596198712,31.96880938,182.3,182.29,0.2]
[1755596198886,36.07937615,182.3,182.29,0.2]
[1755596199076,10.07937615,182.3,182.29,0.2]
[1755596199280,10.07927636,182.3,182.29,0.2]
[1755596199470,5.96880938,182.3,182.29,0.2]
[1755596199799,10.07938348,182.3,182.29,0.2]
[1755596201409,4.1705741,182.3,182.29,0.87]
[1755596204020,0.06,182.3,182.29,6.35576444]
[1755596205010,0.06,182.3,182.29,0.87]
[1755596205899,5.96880938,182.3,182.29,0.2]
[1755596206098,0.06,182.3,182.29,0.2]
[1755596206299,0.06,182.3,182.29,0.87]
[1755596207035,5.96880938,182.3,182.29,0.2]
[1755596207219,10.757592,182.3,182.29,0.2]
[1755596207395,10.077592,182.3,182.29,0.2]
[1755596207799,0.06,182.3,182.29,0.87]
[1755596208000,4.16886842,182.3,182.29,0.87]
[1755596208199,10.0776778,182.3,182.29,0.87]
[1755596208439,10.0776778,182.3,182.29,0.2]
[1755596208802,10.75776783,182.3,182.29,0.2]
[1755596209936,10.07776783,182.3,182.29,0.2]
[1755596211140,10.75776783,182.3,182.29,0.2]
[1755596211727,51.45776783,182.3,182.29,0.2]
[1755596212232,60.64232172,182.3,182.29,0.2]
[1755596215215,60.64232172,182.3,182.28,0.2]
[1755596215413,14.3968582,182.29,182.28,0.2]
[1755596215738,19.88262264,182.29,182.28,0.2]
[1755596216533,14.3968582,182.29,182.28,0.2]
[1755596216711,10.28789975,182.29,182.28,0.2]
[1755596217111,14.39713426,182.29,182.28,0.2]
[1755596217619,40.39713426,182.29,182.28,0.2]
[1755596217809,81.07713426,182.29,182.28,0.2]
[1755596218012,76.96789975,182.29,182.28,0.2]
[1755596218217,81.07664965,182.29,182.28,0.2]
[1755596220440,60.56241409,182.29,182.28,0.2]
[1755596220811,66.47122347,182.29,182.28,0.2]
[1755596221240,15.10621557,182.28,182.27,0.2]
[1755596221430,5.90880938,182.27,182.26,0.03]
[1755596221757,55.07664965,182.27,182.26,0.03]
[1755596222457,60.56301602,182.27,182.26,0.03]
[1755596222751,48.48784027,182.27,182.26,0.03]
[1755596222914,60.56301602,182.27,182.26,0.03]
[1755596223839,54.39664965,182.27,182.26,0.03]
[1755596224219,55.07664965,182.27,182.26,0.03]
[1755596224420,60.56301602,182.27,182.26,0.03]
[1755596225251,60.55969702,182.27,182.26,0.03]
[1755596225863,54.39333065,182.27,182.26,0.03]
[1755596226271,60.55969702,182.27,182.26,0.03]
[1755596226451,59.87969702,182.27,182.26,0.03]
[1755596227272,60.46969702,182.27,182.26,0.03]
[1755596227881,54.98333065,182.27,182.26,0.03]
[1755596228281,60.46969702,182.27,182.26,0.03]
[1755596229450,54.39333065,182.27,182.26,0.03]
[1755596231285,59.87969702,182.27,182.26,0.03]
[1755596231460,60.46969702,182.27,182.26,0.03]
[1755596231665,59.87969702,182.27,182.26,0.03]
[1755596232297,54.39333065,182.27,182.26,0.03]
[1755596232757,13.71333065,182.27,182.26,0.73]
[1755596232956,50.67424028,182.27,182.26,0.73]
[1755596234185,46.56880938,182.27,182.26,0.73]
[1755596234486,50.66729252,182.27,182.26,0.03]
[1755596234885,50.66741406,182.27,182.26,0.03]
[1755596235073,51.35741406,182.27,182.26,0.03]
[1755596236100,50.66752951,182.27,182.26,0.73]
[1755596236777,50.66752951,182.27,182.26,0.03]
[1755596237383,50.66752951,182.27,182.26,0.73]
[1755596238606,10.00752951,182.27,182.26,0.73]
[1755596238905,50.64752951,182.27,182.26,0.73]
[1755596239403,50.64752951,182.27,182.26,0.03]
[1755596240318,50.62752951,182.27,182.26,0.03]
[1755596243405,5.90880938,182.27,182.26,0.03]
[1755596243582,50.62824413,182.27,182.26,0.03]
[1755596244511,44.71943475,182.27,182.26,0.03]
[1755596244886,50.62824413,182.27,182.26,0.03]
[1755596245309,44.71943475,182.27,182.26,0.73]
[1755596245510,10.00824413,182.27,182.26,0.73]
[1755596245710,4.09943475,182.27,182.26,0.73]
[1755596245885,5.90880938,182.28,182.26,0.73]
[1755596246080,5.90880938,182.27,182.26,0.73]
[1755596249388,5.90880938,182.28,182.26,0.73]
[1755596249590,5.96880938,182.29,182.26,0.73]
[1755596249786,5.96880938,182.29,182.26,6.21658756]
[1755596250014,0.06,182.29,182.27,0.7]
[1755596252025,0.06,182.29,182.27,6.18616917]
[1755596252511,0.06,182.29,182.27,5.48616917]
[1755596252719,0.06,182.29,182.28,0.7]
[1755596253730,0.06,182.29,182.28,27.20109034]
[1755596254204,0.06,182.29,182.28,29.39979834]
[1755596254605,0.06,182.29,182.28,12.09487477]
[1755596254912,0.06,182.29,182.28,0.7]
[1755596256114,0.06,182.29,182.28,6.18606539]
[1755596257329,0.06,182.29,182.28,12.09487477]
[1755596262617,0.06,182.29,182.28,67.74109034]
[1755596264641,0.06,182.29,182.28,77.74109034]
[1755596264855,1e-08,182.29,182.28,77.74109034]
[1755596265211,1e-08,182.29,182.28,67.74109034]
[1755596266350,1e-08,182.29,182.28,73.64989972]
[1755596267323,1e-08,182.3,182.29,46.59198001]
[1755596267518,1e-08,182.3,182.29,53.72936583]
[1755596267936,1e-08,182.3,182.29,55.92759083]
[1755596268452,1e-08,182.3,182.29,53.18078939]
[1755596272630,1e-08,182.31,182.29,53.18078939]
[1755596272829,1e-08,182.31,182.3,62.17502495]
[1755596273418,1e-08,182.31,182.3,62.7235713]
[1755596273643,0.06,182.36,182.33,41.10621557]
[1755596273820,0.06,182.36,182.33,87.49502495]
[1755596274023,0.06,182.36,182.33,88.17502495]
[1755596274251,0.06,182.36,182.33,93.65958591]
[1755596282655,0.78,182.34,182.33,45.92456096]
[1755596284554,0.78,182.34,182.33,40.44]
[1755596284926,6.68880938,182.34,182.33,40.44]
[1755596287361,6.68880938,182.34,182.32,40.42]
[1755596287560,0.72,182.33,182.32,40.42]
[1755596287776,0.78,182.34,182.32,40.42]
[1755596288675,0.78,182.34,182.33,5.48456096]
[1755596289656,0.06,182.34,182.33,5.48456096]
[1755596289860,0.06,182.34,182.33,12.10337034]
[1755596290181,0.06,182.34,182.33,27.20958591]
[1755596290367,0.06,182.34,182.33,26.49958591]
[1755596290685,0.74,182.34,182.32,40.42]
[1755596290881,6.64880938,182.34,182.32,40.42]
[1755596291077,6.64880938,182.34,182.28,15.13621557]
[1755596291078,6.58880938,182.33,182.28,15.13621557]
[1755596291265,5.90880938,182.33,182.29,40.42]
[1755596291463,0.68,182.32,182.29,40.42]
[1755596291662,6.58880938,182.32,182.29,40.42]
[1755596291888,0.68,182.32,182.29,45.90571385]
[1755596292891,5.90880938,182.33,182.29,46.61571385]
[1755596293584,6.58880938,182.33,182.29,46.61571385]
[1755596293787,0.68,182.32,182.29,45.90571385]
[1755596295280,0.06,182.34,182.29,45.90571385]
[1755596295281,0.74,182.34,182.29,46.61571385]
[1755596295472,6.64880938,182.34,182.3,0.71]
[1755596295668,6.64880938,182.34,182.31,40.4]
[1755596296064,5.96880938,182.34,182.31,40.4]
[1755596296269,6.58880938,182.33,182.31,40.4]
[1755596296487,0.68,182.32,182.31,40.4]
[1755596297178,6.58880938,182.32,182.31,40.4]
[1755596299686,0.68,182.32,182.31,40.4]
[1755596300080,6.58880938,182.32,182.31,40.4]
[1755596300692,0.68,182.32,182.28,0.03]
[1755596300890,5.90880938,182.3,182.29,40.38]
[1755596301097,6.58880938,182.3,182.29,40.38]
[1755596301992,6.58880938,182.3,182.28,0.03]
[1755596302201,6.58880938,182.29,182.28,0.03]
[1755596307899,0.68,182.29,182.28,0.03]
[1755596308224,6.58880938,182.29,182.28,0.03]
[1755596313498,12.49761876,182.29,182.28,0.03]
[1755596313698,16.58918631,182.29,182.27,0.03]
[1755596313916,38.49761876,182.28,182.27,0.03]
[1755596316938,32.58880938,182.28,182.27,0.03]
[1755596317809,38.49761876,182.28,182.27,0.03]
[1755596319621,38.49761876,182.28,182.26,0.03]
[1755596319815,46.90880938,182.27,182.26,0.03]
[1755596321742,46.90880938,182.27,182.24,0.03]
[1755596321743,26.0,182.25,182.24,0.03]
[1755596322039,31.90880938,182.25,182.24,0.03]
[1755596322337,32.58880938,182.25,182.24,0.03]
[1755596324536,31.90880938,182.25,182.24,0.03]
[1755596324748,72.22880938,182.25,182.24,0.03]
[1755596325230,72.90880938,182.25,182.24,0.03]
[1755596328542,72.90880938,182.25,182.22,0.03]
[1755596328543,82.46363473,182.25,182.22,0.03]
[1755596328766,5.90880938,182.23,182.22,0.03]
[1755596329123,46.88880938,182.23,182.22,0.03]
[1755596329451,50.97682352,182.23,182.21,0.03]
[1755596329645,6.58880938,182.22,182.21,0.03]
[1755596329853,6.58880938,182.22,182.2,0.03]
[1755596329854,31.90880938,182.21,182.2,0.03]
[1755596330026,72.88880938,182.21,182.2,0.03]
[1755596330223,72.88880938,182.21,182.18,0.03]
[1755596330424,5.90880938,182.19,182.18,0.03]
[1755596330742,46.20880938,182.19,182.18,0.03]
[1755596331150,26.0,182.16,182.13,0.68]
[1755596331346,5.90880938,182.14,182.13,0.68]
[1755596331546,5.90880938,182.14,182.11,5.49114929]
[1755596331733,5.90880938,182.12,182.11,5.49114929]
[1755596332158,5.90880938,182.12,182.11,6.17114929]
[1755596332352,5.90880938,182.12,182.11,0.68]
[1755596335852,26.0,182.16,182.11,0.68]
[1755596336056,5.90880938,182.12,182.11,0.68]
[1755596336247,5.90880938,182.12,182.1,45.79138964]
[1755596336748,0.68,182.14,182.1,5.49138964]
[1755596336946,5.90880938,182.11,182.1,5.49138964]
[1755596337345,5.90880938,182.11,182.1,6.17138964]
[1755596337772,5.90880938,182.11,182.1,0.68]
[1755596337965,72.86880938,182.16,182.1,6.17148819]
[1755596338279,132.0,182.15,182.11,0.68]
[1755596338691,132.0,182.15,182.12,0.68]
[1755596339357,132.0,182.15,182.1,5.49148819]
[1755596339565,5.90880938,182.11,182.1,5.49148819]
[1755596340178,132.0,182.15,182.1,6.17148819]
[1755596340451,132.68,182.15,182.11,0.68]
[1755596340761,5.90880938,182.12,182.11,0.68]
[1755596342353,5.90880938,182.12,182.09,5.69169461]
[1755596342673,5.90880938,182.1,182.09,0.2]
[1755596343385,6.58880938,182.1,182.09,0.2]
[1755596351680,32.58880938,182.1,182.09,0.2]
[1755596351889,32.58880938,182.1,182.09,0.9]
[1755596351890,31.90880938,182.1,182.09,0.9]
[1755596352659,31.90880938,182.1,182.09,0.2]
[1755596354090,31.90880938,182.1,182.09,0.9]
[1755596355404,137.90880938,182.12,182.09,6.39178977]
[1755596355579,5.90880938,182.13,182.09,6.39178977]
[1755596355885,5.15603232,182.17,182.1,0.7]
[1755596355886,5.90880938,182.12,182.1,0.7]
[1755596356068,5.90880938,182.11,182.09,0.9]
[1755596356263,5.90880938,182.1,182.09,0.2]
[1755596357583,6.61880938,182.1,182.09,0.2]
[1755596357777,5.90880938,182.1,182.09,0.2]
[1755596359682,6.61880938,182.1,182.09,0.2]
[1755596360269,0.71,182.1,182.09,0.2]
[1755596360468,5.90880938,182.1,182.09,0.2]
[1755596360662,5.90880938,182.1,182.09,0.9]
[1755596361466,5.90880938,182.1,182.09,0.2]
[1755596362094,31.90880938,182.1,182.09,0.9]
[1755596363194,31.90880938,182.1,182.09,0.2]
[1755596365089,31.90880938,182.1,182.09,0.9]
[1755596365297,26.0,182.11,182.09,0.9]
[1755596365482,5.90880938,182.1,182.09,0.9]
[1755596365674,5.90880938,182.1,182.09,0.2]
[1755596366284,5.90880938,182.1,182.09,0.9]
[1755596366995,5.90880938,182.1,182.09,0.2]
[1755596368899,0.71,182.12,182.09,0.2]
[1755596369075,5.90880938,182.1,182.09,0.2]
[1755596369276,0.71,182.12,182.09,0.2]
[1755596369483,5.90880938,182.1,182.09,0.2]
[1755596370996,6.61880938,182.1,182.09,0.2]
[1755596371590,10.71902202,182.1,182.09,0.2]
[1755596371789,4.10021264,182.1,182.09,0.2]
[1755596372006,66.16,182.13,182.09,0.9]
[1755596372195,4.10002088,182.12,182.1,0.7]
[1755596372393,4.10002088,182.12,182.09,0.2]
[1755596372394,5.90880938,182.11,182.09,0.2]
[1755596372609,5.90880938,182.1,182.09,0.2]
[1755596374692,10.0157755,182.1,182.09,0.2]
[1755596375398,10.7257755,182.1,182.09,0.2]
[1755596376305,8.61404757,182.1,182.09,0.2]
[1755596378619,34.61878838,182.1,182.09,0.2]
[1755596378810,30.82170693,182.1,182.09,0.2]
[1755596379002,34.61878838,182.1,182.09,0.2]
[1755596381506,38.32220422,182.1,182.09,0.2]
[1755596382298,43.81369241,182.1,182.09,0.2]
[1755596382522,38.32220422,182.1,182.09,0.2]
[1755596386699,37.61220422,182.1,182.09,0.2]
[1755596386934,77.73220422,182.1,182.09,0.2]
[1755596387631,77.73811033,182.1,182.09,0.2]
[1755596387799,78.41811033,182.1,182.09,0.2]
[1755596388635,78.41991382,182.1,182.09,0.2]
[1755596390354,80.55765271,182.1,182.09,0.2]
[1755596390633,80.55694336,182.1,182.09,0.2]
[1755596391007,86.04843155,182.1,182.09,0.2]
[1755596391208,80.55694336,182.1,182.09,0.2]
[1755596391428,79.87694336,182.1,182.09,0.2]
[1755596392534,79.87694336,182.1,182.09,0.91]
[1755596394221,73.94212302,182.1,182.09,0.91]
[1755596394425,79.87694336,182.1,182.09,0.91]
[1755596396545,79.87523781,182.1,182.09,0.91]
[1755596397536,79.87523781,182.1,182.09,0.2]
[1755596400844,80.55523781,182.1,182.09,0.2]
[1755596404453,79.87523781,182.1,182.09,0.2]
[1755596404743,79.87475703,182.1,182.09,0.2]
[1755596407729,80.55475703,182.1,182.09,0.2]
[1755596408432,86.04624522,182.1,182.07,0.03]
[1755596408631,31.93482034,182.08,182.07,0.03]
[1755596408834,79.77475703,182.08,182.07,0.03]
[1755596409057,80.47475703,182.08,182.07,0.03]
[1755596411031,79.77475703,182.08,182.07,0.03]
[1755596412432,78.33894869,182.08,182.07,0.03]